fUSD/lending_fUSD_20250417
["ID","MTS","AMOUNT","RATE_DAILY","PERIOD"]
[358292177,1744899063718,-500.0,0.00424656,120]
[358292178,1744899063728,-862.52,0.00424656,120]
[358292179,1744899063739,-500.0,0.00424656,120]
[358292180,1744899063749,-500.0,0.00424656,120]
[358292181,1744899063760,-1137.05,0.00427395,8]
[358292182,1744899063770,-333.79,0.00427396,120]
[358292183,1744899063780,-500.0,0.00427396,120]
[358292184,1744899063790,-500.0,0.00427396,120]
[358292185,1744899063801,-546.05223731,0.00427396,7]
[358292186,1744899063811,-500.0,0.00427396,120]
[358292187,1744899063822,-507.92,0.00427397,120]
[358292188,1744899063832,-344.59946219,0.00427397,120]
[358292189,1744899063842,-574.95,0.00427397,120]
[358292190,1744899063852,-647.16,0.00427397,120]
[358292191,1744899063861,-1139.73749584,0.00431413,120]
[358292192,1744899063872,-25000.0,0.00432531,120]
[358292193,1744899063883,-500.0,0.00432864,120]
[358292194,1744899063892,-763.32,0.00435604,120]
[358292195,1744899063902,-571.57,0.00435615,120]
[358292196,1744899063912,-500.0,0.00435615,120]
[358292197,1744899063922,-862.52,0.00435615,120]
[358292198,1744899063933,-282.23283146,0.00435615,120]
[358292199,1744899063942,-420.64920841,0.00435615,120]
[358292200,1744899063953,-1137.05,0.00438354,8]
[358292201,1744899063963,-333.79,0.00438355,120]
[358292202,1744899063977,-500.0,0.00438355,120]
[358292203,1744899063989,-500.0,0.00438355,120]
[358292204,1744899063999,-500.0,0.00438355,120]
[358292205,1744899064009,-500.0,0.00438356,120]
[358292206,1744899064019,-500.0,0.00438356,120]
[358292207,1744899064029,-500.0,0.00438356,120]
[358292208,1744899064039,-500.0,0.00438356,120]
[358292209,1744899064050,-500.0,0.00438356,120]
[358292210,1744899064059,-500.0,0.00438356,120]
[358292211,1744899064069,-500.0,0.00438356,120]
[358292212,1744899064079,-500.0,0.00438356,120]
[358292213,1744899064089,-500.0,0.00438356,120]
[358292214,1744899064099,-500.0,0.00438356,120]
[358292215,1744899064110,-500.0,0.00438356,120]
[358292216,1744899064120,-500.0,0.00438356,120]
[358292217,1744899064130,-500.0,0.00438356,120]
[358292218,1744899064140,-500.0,0.00438356,120]
[358292219,1744899064155,-500.0,0.00438356,120]
[358292220,1744899064166,-500.0,0.00438356,120]
[358292221,1744899064176,-507.92,0.00438356,120]
[358292222,1744899064186,-574.95,0.00438356,120]
[358292223,1744899064196,-647.16,0.00438356,120]
[358292224,1744899064206,-500.0,0.00443823,120]
[358292225,1744899064216,-2000.0,0.00445,120]
[358292226,1744899064226,-945.987,0.00445415,120]
[358292227,1744899064237,-763.32,0.00446563,120]
[358292228,1744899064248,-7882.64864567,0.00446567,15]
[358292229,1744899064258,-571.57,0.00446574,120]
[358292230,1744899064268,-500.0,0.00446574,120]
[358292231,1744899064278,-862.52,0.00446574,120]
[358292232,1744899064289,-333.79,0.00449313,120]
[358292233,1744899064302,-500.0,0.00449313,120]
[358292234,1744899064312,-413.24401803,0.00449313,120]
[358292235,1744899064322,-500.0,0.00449313,120]
[358292236,1744899064333,-1137.05,0.00449313,8]
[358292237,1744899064343,-500.0,0.00449315,120]
[358292238,1744899064353,-507.92,0.00449315,120]
[358292239,1744899064363,-574.95,0.00449315,120]
[358292240,1744899064373,-647.16,0.00449315,120]
[358292241,1744899064384,-25000.0,0.00454594,120]
[358292242,1744899064394,-500.0,0.00454782,120]
[358292243,1744899064404,-763.32,0.00457522,120]
[358292244,1744899064414,-571.57,0.00457533,120]
[358292245,1744899064424,-500.0,0.00457533,120]
[358292246,1744899064434,-862.52,0.00457533,120]
[358292247,1744899064443,-18241.60049884,0.0046,120]
[358292248,1744899064453,-333.79,0.00460272,120]
[358292249,1744899064464,-500.0,0.00460272,120]
[358292250,1744899064476,-500.0,0.00460272,120]
[358292251,1744899064489,-1137.05,0.00460272,8]
[358292252,1744899064499,-500.0,0.00460273,120]
[358292253,1744899064509,-507.92,0.00460273,120]
[358292254,1744899064521,-574.95,0.00460273,120]
[358292255,1744899064530,-647.16,0.00460273,120]
[358292256,1744899064539,-12471.90099928,0.00460479,120]
[358292257,1744899064550,-500.0,0.00465741,120]
[358292258,1744899064561,-763.32,0.00468481,120]
[358292259,1744899064571,-571.57,0.00468492,120]
[358292260,1744899064580,-500.0,0.00468492,120]
[358292261,1744899064590,-862.52,0.00468492,120]
[358292262,1744899064600,-1577.68,0.0047,120]
[358292263,1744899064610,-333.79,0.00471231,120]
[358292264,1744899064621,-500.0,0.00471231,120]
[358292265,1744899064631,-500.0,0.00471231,120]
[358292266,1744899064641,-1137.05,0.00471231,8]
[358292267,1744899064651,-500.0,0.00471232,120]
[358292268,1744899064661,-507.92,0.00471232,120]
[358292269,1744899064671,-574.95,0.00471232,120]
[358292270,1744899064681,-647.16,0.00471232,120]
[358292271,1744899064692,-500.0,0.004767,120]
[358292272,1744899064702,-25000.0,0.00477783,120]
[358292273,1744899064712,-150.0,0.00478044,120]
[358292274,1744899064722,-763.32,0.0047944,120]
[358292275,1744899064734,-571.57,0.0047945,120]
[358292276,1744899064743,-500.0,0.0047945,120]
[358292277,1744899064754,-862.52,0.0047945,120]
[358292278,1744899064763,-10803.58512715,0.0048,60]
[358292279,1744899064773,-181.10564663,0.0048,60]
[358292280,1744899064782,-4722.16840009,0.0048,120]
[358292281,1744899064792,-465970.00000001,0.0048,120]
[358292282,1744899064802,-11324.85356301,0.00481494,30]
[358292283,1744899064812,-150.0,0.00481594,120]
[358292284,1744899064821,-150.0,0.0048219,120]
[358292285,1744899064830,-333.79,0.0048219,120]
[358292286,1744899064840,-500.0,0.0048219,120]
[358292287,1744899064850,-500.0,0.0048219,120]
[358292288,1744899064859,-1137.05,0.0048219,8]
[358292289,1744899064869,-500.0,0.00482191,120]
[358292290,1744899064878,-507.92,0.00482191,120]
[358292291,1744899064888,-574.95,0.00482191,120]
[358292292,1744899064898,-647.16,0.00482191,120]
[358292293,1744899064907,-8765.0,0.00486224,120]
[358292294,1744899064916,-500.0,0.00487659,120]
[358292295,1744899064926,-500.0,0.0048831,120]
[358292296,1744899064935,-917.97,0.00489897,120]
[358292297,1744899064945,-13326.0,0.00489898,120]
[358292298,1744899064954,-44533.76045954,0.0049,120]
[358292299,1744899064964,-763.32,0.00490399,120]
[358292300,1744899064974,-571.57,0.00490409,120]
[358292301,1744899064985,-500.0,0.00490409,120]
[358292302,1744899064995,-862.52,0.00490409,120]
[358292303,1744899065004,-333.79,0.00493149,120]
[358292304,1744899065014,-500.0,0.00493149,2]
[358292305,1744899065024,-500.0,0.00493149,120]
[358292306,1744899065033,-500.0,0.00493149,120]
[358292307,1744899065043,-1137.05,0.00493149,8]
[358292308,1744899065052,-616.03,0.0049315,120]
[358292309,1744899065061,-616.03,0.0049315,120]
[358292310,1744899065071,-616.03,0.0049315,120]
[358292311,1744899065081,-616.03,0.0049315,120]
[358292312,1744899065090,-616.03,0.0049315,120]
[358292313,1744899065100,-616.03,0.0049315,120]
[358292314,1744899065110,-616.03,0.0049315,120]
[358292315,1744899065121,-616.03,0.0049315,120]
[358292316,1744899065132,-616.03,0.0049315,120]
[358292317,1744899065143,-616.03,0.0049315,120]
[358292318,1744899065153,-616.03,0.0049315,120]
[358292319,1744899065162,-616.03,0.0049315,120]
[358292320,1744899065172,-616.03,0.0049315,120]
[358292321,1744899065181,-616.03,0.0049315,120]
[358292322,1744899065191,-616.03,0.0049315,120]
[358292323,1744899065201,-616.03,0.0049315,120]
[358292324,1744899065212,-616.03,0.0049315,120]
[358292325,1744899065221,-309.0,0.0049315,120]
[358292326,1744899065231,-507.92,0.0049315,120]
[358292327,1744899065242,-574.95,0.0049315,120]
[358292328,1744899065252,-647.16,0.0049315,120]
[358292329,1744899065262,-5184.0486767,0.00493233,15]
[358292330,1744899065353,-2000.0,0.00495,120]
[358292331,1744899065363,-109580.22496448,0.00498,120]
[358292332,1744899065374,-616.03,0.00498618,120]
[358292333,1744899065383,-500.0,0.00498618,120]
[358292334,1744899065393,-6163.75213491,0.00499,120]
[358292335,1744899065403,-6000.0,0.00499,120]
[358292336,1744899065413,-1456.16550702,0.00499,120]
[358292337,1744899065422,-200000.0,0.004998,120]
[358292338,1744899065432,-1000.0,0.004999,120]
[358292339,1744899065442,-525.99799707,0.00499999,120]
[358292340,1744899065451,-500.0,0.00499999,120]
[358292341,1744899065462,-500.0,0.00499999,120]
[358292342,1744899065473,-500.0,0.00499999,120]
[358292343,1744899065486,-500.0,0.00499999,120]
[358292344,1744899065496,-514.68407597,0.00499999,120]
[358292345,1744899065505,-535.59682183,0.00499999,120]
[358292346,1744899065516,-50000.0,0.005,90]
[358292347,1744899065526,-20000.0,0.005,120]
[358292348,1744899065535,-302.0,0.005,120]
[358292349,1744899065546,-498.76,0.005,120]
[358292350,1744899065557,-1380.10098186,0.005,30]
[358292351,1744899065567,-2000.0,0.005,120]
[358292352,1744899065577,-302.0,0.00500027,120]
[358292353,1744899065586,-763.32,0.00501358,120]
[358292354,1744899065597,-571.57,0.00501368,120]
[358292355,1744899065607,-500.0,0.00501368,120]
[358292356,1744899065617,-862.52,0.00501368,120]
[358292357,1744899065628,-25000.0,0.00502155,120]
[358292358,1744899065637,-435.7175,0.00503781,120]
[358292359,1744899065647,-991.9314,0.00503781,120]
[358292360,1744899065657,-1137.05,0.00504107,8]
[358292361,1744899065667,-333.79,0.00504108,120]
[358292362,1744899065677,-457.9,0.00504108,120]
[358292363,1744899065687,-500.0,0.00504108,120]
[358292364,1744899065697,-507.92,0.00504109,120]
[358292365,1744899065707,-574.95,0.00504109,120]
[358292366,1744899065717,-647.16,0.00504109,120]
[358292367,1744899065727,-616.03,0.00509576,120]
[358292368,1744899065739,-500.0,0.00509576,120]
[358292369,1744899065748,-150.0,0.00509587,120]
[358292370,1744899065758,-20000.0,0.0051,120]
[358292371,1744899065767,-225.9142616,0.00510958,120]
[358292372,1744899065777,-763.32,0.00512316,120]
[358292373,1744899065786,-571.57,0.00512327,120]
[358292374,1744899065796,-500.0,0.00512327,120]
[358292375,1744899065807,-862.52,0.00512327,120]
[358292376,1744899065817,-603.24615042,0.00514855,120]
[358292377,1744899065827,-1137.05,0.00515066,8]
[358292378,1744899065837,-333.79,0.00515067,120]
[358292379,1744899065846,-500.0,0.00515067,120]
[358292380,1744899065855,-507.92,0.00515068,120]
[358292381,1744899065865,-574.95,0.00515068,120]
[358292382,1744899065875,-647.16,0.00515068,120]
[358292383,1744899065885,-7882.64864567,0.005199,15]
[358292384,1744899065894,-492.97675983,0.0051999,30]
[358292385,1744899065904,-917.97,0.00519999,120]
[358292386,1744899065913,-20000.0,0.0052,120]
[358292387,1744899065923,-1576.16,0.0052,120]
[358292388,1744899065932,-313.57870125,0.00520436,120]
[358292389,1744899065942,-616.03,0.00520535,120]
[358292390,1744899065953,-474.012,0.00520535,120]
[358292391,1744899065962,-763.32,0.00523275,120]
[358292392,1744899065972,-571.57,0.00523286,120]
[358292393,1744899065982,-192.49588028,0.00523286,120]
[358292394,1744899065992,-862.52,0.00523286,120]
[358292395,1744899066002,-1137.05,0.00526025,8]
[358292396,1744899066012,-333.79,0.00526026,120]
[358292397,1744899066021,-500.0,0.00526026,120]
[358292398,1744899066032,-508.1,0.00526027,120]
[358292399,1744899066042,-575.08,0.00526027,120]
[358292400,1744899066052,-647.348,0.00526027,120]
[358292401,1744899066061,-25000.0,0.00527769,120]
[358292402,1744899066071,-20000.0,0.0053,120]
[358292403,1744899066080,-834.11263794,0.00530931,30]
[358292404,1744899066091,-546.0,0.00531031,90]
[358292405,1744899066100,-616.03,0.00531494,120]
[358292406,1744899066109,-1000.0,0.005322,120]
[358292407,1744899066119,-500.0,0.00533382,120]
[358292408,1744899066129,-763.32,0.00534234,120]
[358292409,1744899066139,-571.61599859,0.00534245,120]
[358292410,1744899066148,-862.5851944,0.00534245,120]
[358292411,1744899066158,-11035.19422695,0.00535,120]
[358292412,1744899066168,-380.59678526,0.00536884,60]
[358292413,1744899066177,-150.0,0.00536984,120]
[358292414,1744899066187,-1137.15722985,0.00536984,8]
[358292415,1744899066197,-333.9,0.00536985,120]
[358292416,1744899066207,-216.53521442,0.00536985,120]
[358292417,1744899066216,-150.0,0.00539388,120]
[358292418,1744899066226,-20000.0,0.0054,120]
[358292419,1744899066237,-616.03,0.00542453,120]
[358292420,1744899066247,-500.0,0.00544999,2]
[358292421,1744899066257,-2000.0,0.00545,120]
[358292422,1744899066268,-763.38629622,0.00545193,120]
[358292423,1744899066278,-150.0,0.00547915,120]
[358292424,1744899066288,-183.41650148,0.005499,120]
[358292425,1744899066298,-3176.0,0.005499,120]
[358292426,1744899066308,-1200.0,0.005499,120]
[358292427,1744899066318,-500.0,0.00549999,2]
[358292428,1744899066327,-500.0,0.00549999,2]
[358292429,1744899066337,-500.0,0.00549999,2]
[358292430,1744899066347,-917.97,0.00549999,120]
[358292431,1744899066356,-917.97,0.00549999,120]
[358292432,1744899066366,-917.97,0.00549999,120]
[358292433,1744899066375,-917.97,0.00549999,120]
[358292434,1744899066385,-20000.0,0.0055,120]
[358292435,1744899066394,-200000.0,0.0055,120]
[358292436,1744899066404,-200000.0,0.0055,120]
[358292437,1744899066414,-200000.0,0.0055,120]
[358292438,1744899066424,-200000.0,0.0055,120]
[358292439,1744899066434,-100000.0,0.0055,120]
[358292440,1744899066444,-33076.223253,0.0055,120]
[358292441,1744899066455,-1991.0,0.005528,120]
[358292442,1744899066465,-616.03,0.00553412,120]
[358292443,1744899066478,-25000.0,0.00554691,120]
[358292444,1744899066489,-1000.0,0.005599,120]
[358292445,1744899066500,-500.0,0.00559999,2]
[358292446,1744899066510,-8833.6720618,0.0056,30]
[358292447,1744899066521,-20000.0,0.0056,120]
[358292448,1744899066531,-12471.90099928,0.00560479,120]
[358292449,1744899066541,-5184.0486767,0.00562122,15]
[358292450,1744899066551,-616.22191596,0.00564371,120]
[358292451,1744899066564,-150.0,0.00564382,120]
[358292452,1744899066574,-500.0,0.00564384,2]
[358292453,1744899066584,-317.0,0.005661,120]
[358292454,1744899066593,-2501.32272666,0.00568733,120]
[358292455,1744899066603,-917.97,0.00569999,120]
[358292456,1744899066613,-20000.0,0.0057,120]
[358292457,1744899066622,-99786.22346836,0.0057,120]
[358292458,1744899066632,-10000.000001,0.0057,120]
[358292459,1744899066642,-154.68,0.005727,87]
[358292460,1744899066652,-154.68,0.005727,87]
[358292461,1744899066662,-1000.0,0.005734,120]
[358292462,1744899066672,-4277.91179047,0.0058,120]
[358292463,1744899066681,-20000.0,0.0058,120]
[358292464,1744899066692,-150.0,0.00582251,120]
[358292465,1744899066702,-25000.0,0.00582986,120]
[358292466,1744899066712,-150.0,0.00584398,120]
[358292467,1744899066721,-150.0,0.00585145,120]
[358292468,1744899066731,-500.0,0.00588999,2]
[358292469,1744899066741,-150.0,0.00588999,120]
[358292470,1744899066751,-150.0,0.00588999,120]
[358292471,1744899066761,-49600.0,0.00589,120]
[358292472,1744899066770,-819.0,0.0059,120]
[358292473,1744899066780,-193.0,0.0059,120]
[358292474,1744899066789,-150.0,0.00591779,120]
[358292475,1744899066799,-150.0,0.00593232,120]
[358292476,1744899066809,-7882.64864567,0.00593233,15]
[358292477,1744899066818,-150.0,0.00597999,120]
[358292478,1744899066894,-150.0,0.00597999,120]
[358292479,1744899066912,-150.0,0.00597999,120]
[358292480,1744899066921,-150.0,0.00597999,120]
[358292481,1744899066931,-150.0,0.00597999,120]
[358292482,1744899066941,-150.00000004,0.00597999,120]
[358292483,1744899066951,-1494.28,0.00598,120]
[358292484,1744899066960,-205.0,0.00598,120]
[358292485,1744899066970,-152.55642483,0.00598,120]
[358292486,1744899066979,-500.0,0.00598,120]
[358292487,1744899066990,-518.5,0.00598,120]
[358292488,1744899066999,-537.6845,0.00598,120]
[358292489,1744899067009,-968.27107271,0.00598,120]
[358292490,1744899067018,-200.0,0.00598,120]
[358292491,1744899067027,-207.4,0.00598,120]
[358292492,1744899067037,-215.0738,0.00598,120]
[358292493,1744899067047,-223.0315306,0.00598,120]
[358292494,1744899067056,-231.28369723,0.00598,120]
[358292495,1744899067065,-239.84119403,0.00598,120]
[358292496,1744899067075,-248.71531821,0.00598,120]
[358292497,1744899067085,-257.91778498,0.00598,120]
[358292498,1744899067095,-267.46074303,0.00598,120]
[358292499,1744899067104,-277.35679052,0.00598,120]
[358292500,1744899067114,-287.61899177,0.00598,120]
[358292501,1744899067123,-298.26089446,0.00598,120]
[358292502,1744899067132,-309.29654756,0.00598,120]
[358292503,1744899067141,-320.74051982,0.00598,120]
[358292504,1744899067151,-332.60791905,0.00598,120]
[358292505,1744899067160,-344.91441206,0.00598,120]
[358292506,1744899067170,-357.6762453,0.00598,120]
[358292507,1744899067179,-370.91026638,0.00598,120]
[358292508,1744899067189,-384.63394623,0.00598,120]
[358292509,1744899067198,-600.0,0.00598,120]
[358292510,1744899067207,-5767.0896113,0.00598219,120]
[358292511,1744899067217,-12000.0,0.00599,120]
[358292512,1744899067227,-500.0,0.00599999,2]
[358292513,1744899067238,-917.97,0.00599999,120]
[358292514,1744899067248,-50000.0,0.006,2]
[358292515,1744899067258,-50000.0,0.006,65]
[358292516,1744899067268,-500.0,0.006,120]
[358292517,1744899067278,-1000.0,0.006,120]
[358292518,1744899067287,-10000.0,0.006,120]
[358292519,1744899067297,-200.0,0.006,120]
[358292520,1744899067306,-1000.0,0.006,120]
[358292521,1744899067315,-1328.43918311,0.006,120]
[358292522,1744899067325,-151.0,0.006,120]
[358292523,1744899067334,-151.0,0.006,120]
[358292524,1744899067344,-2000.0,0.006,120]
[358292525,1744899067355,-800.0,0.00607957,120]
[358292526,1744899067364,-822.72411722,0.00607957,120]
[358292527,1744899067374,-500.0,0.00609999,120]
[358292528,1744899067383,-504.65185615,0.00609999,120]
[358292529,1744899067393,-40000.0,0.00612725,120]
[358292530,1744899067402,-150.0,0.00612785,120]
[358292531,1744899067412,-150.0,0.00619176,120]
[358292532,1744899067421,-152.0,0.00619436,3]
[358292533,1744899067431,-1576.16,0.0062,120]
[358292534,1744899067441,-800.0,0.00621501,120]
[358292535,1744899067451,-800.0,0.00621501,120]
[358292536,1744899067461,-800.0,0.00621501,120]
[358292537,1744899067475,-800.0,0.00621501,120]
[358292538,1744899067486,-800.0,0.00621501,120]
[358292539,1744899067496,-800.0,0.00621501,120]
[358292540,1744899067507,-800.0,0.00626981,120]
[358292541,1744899067518,-1577.68,0.0063,120]
[358292542,1744899067527,-5184.0486767,0.00631011,15]
[358292543,1744899067537,-800.0,0.0063246,120]
[358292544,1744899067550,-800.0,0.00637939,120]
[358292545,1744899067559,-2000.0,0.006385,50]
[358292546,1744899067569,-7978.0,0.0064,120]
[358292547,1744899067578,-800.0,0.00643419,120]
[358292548,1744899067588,-40000.0,0.0064398,120]
[358292549,1744899067597,-150.0,0.00646573,120]
[358292550,1744899067607,-800.0,0.00648898,120]
[358292551,1744899067616,-3536.9817838,0.0065,120]
[358292552,1744899067626,-150.0,0.00652489,120]
[358292553,1744899067636,-2000.0,0.006532,55]
[358292554,1744899067645,-800.0,0.00654378,120]
[358292555,1744899067654,-1000.0,0.00657505,120]
[358292556,1744899067664,-800.0,0.00659857,120]
[358292557,1744899067674,-500.0,0.0066001,120]
[358292558,1744899067684,-12471.90099928,0.00660479,120]
[358292559,1744899067694,-800.0,0.00665337,120]
[358292560,1744899067704,-6919.661283,0.0066653,120]
[358292561,1744899067713,-7882.64864567,0.00666567,15]
[358292562,1744899067723,-2501.32272666,0.00668603,120]
[358292563,1744899067733,-7000.0,0.0067,120]
[358292564,1744899067743,-3390.78600091,0.0067,120]
[358292565,1744899067752,-10000.0,0.0067,120]
[358292566,1744899067762,-800.0,0.00670816,120]
[358292567,1744899067772,-150.0,0.00673971,120]
[358292568,1744899067782,-150.0,0.00674155,120]
[358292569,1744899067792,-150.0,0.00674988,120]
[358292570,1744899067802,-800.0,0.00676296,120]
[358292571,1744899067812,-40000.0,0.00676829,120]
[358292572,1744899067822,-129756.431468,0.0068,120]
[358292573,1744899067831,-800.0,0.00681775,120]
[358292574,1744899067842,-666.0,0.00684931,120]
[358292575,1744899067851,-666.0,0.00684931,120]
[358292576,1744899067861,-666.0,0.00684931,120]
[358292577,1744899067870,-666.0,0.00684931,120]
[358292578,1744899067880,-666.0,0.00684931,120]
[358292579,1744899067890,-666.0,0.00684931,120]
[358292580,1744899067900,-666.0,0.00684931,120]
[358292581,1744899067909,-666.0,0.00684931,120]
[358292582,1744899067917,-666.0,0.00684931,120]
[358292583,1744899067924,-666.0,0.00684931,120]
[358292584,1744899067932,-666.0,0.00684931,120]
[358292585,1744899067941,-666.0,0.00684931,120]
[358292586,1744899067948,-666.0,0.00684931,120]
[358292587,1744899067955,-666.0,0.00684931,120]
[358292588,1744899067963,-666.0,0.00684931,120]
[358292589,1744899067971,-666.0,0.00684931,120]
[358292590,1744899067980,-666.0,0.00684931,120]
[358292591,1744899067991,-666.0,0.00684931,120]
[358292592,1744899068000,-666.0,0.00684931,120]
[358292593,1744899068009,-666.0,0.00684931,120]
[358292594,1744899068018,-464.4428555,0.00684931,120]
[358292595,1744899068029,-2012.52875,0.006852,50]
[358292596,1744899068038,-800.0,0.00687255,120]
[358292597,1744899068048,-3566.2294039,0.0069,120]
[358292598,1744899068057,-150.0,0.00691066,120]
[358292599,1744899068067,-800.0,0.00692734,120]
[358292600,1744899068077,-2500.0,0.00698,120]
[358292601,1744899068086,-800.0,0.00698213,120]
[358292602,1744899068095,-760.5672,0.006999,30]
[358292603,1744899068105,-20000.0,0.006999,120]
[358292604,1744899068115,-5184.0486767,0.006999,15]
[358292605,1744899068125,-288.65993144,0.0069999,120]
[358292606,1744899068135,-500.0,0.00699999,2]
[358292607,1744899068144,-917.97,0.00699999,120]
[358292608,1744899068155,-50000.0,0.007,2]
[358292609,1744899068165,-50000.0,0.007,70]
[358292610,1744899068175,-12557.62674604,0.007,120]
[358292611,1744899068185,-10000.0,0.007,120]
[358292612,1744899068195,-7000.0,0.007,120]
[358292613,1744899068205,-1174.23,0.007,120]
[358292614,1744899068215,-10148.0,0.007,120]
[358292615,1744899068286,-1000.0,0.007,120]
[358292616,1744899068302,-1999.4,0.007,120]
[358292617,1744899068313,-1000.0,0.007,120]
[358292618,1744899068323,-1368.43920352,0.007,120]
[358292619,1744899068333,-5000.0,0.007,120]
[358292620,1744899068343,-2321.4,0.007,120]
[358292621,1744899068353,-150.0,0.00701368,120]
[358292622,1744899068363,-800.0,0.00703693,120]
[358292623,1744899068373,-4423.25,0.007065,2]
[358292624,1744899068383,-8446.08,0.007065,2]
[358292625,1744899068394,-1689.22,0.007065,2]
[358292626,1744899068404,-337.84,0.007065,2]
[358292627,1744899068414,-800.0,0.00709172,120]
[358292628,1744899068423,-1000.0,0.0071,120]
[358292629,1744899068433,-4423.25,0.007102,2]
[358292630,1744899068442,-8446.08,0.007102,2]
[358292631,1744899068452,-1689.22,0.007102,2]
[358292632,1744899068462,-337.84,0.007102,2]
[358292633,1744899068472,-266.67322323,0.00710504,120]
[358292634,1744899068487,-150.0,0.00710504,120]
[358292635,1744899068497,-150.0,0.00710504,120]
[358292636,1744899068506,-150.0,0.00710504,120]
[358292637,1744899068515,-150.0,0.00710504,120]
[358292638,1744899068526,-150.0,0.00710504,120]
[358292639,1744899068536,-150.0,0.00710504,120]
[358292640,1744899068546,-266.67322323,0.00711302,120]
[358292641,1744899068557,-40000.0,0.00711354,120]
[358292642,1744899068567,-150.0,0.00711479,120]
[358292643,1744899068577,-150.0,0.00711777,120]
[358292644,1744899068586,-266.67322323,0.00712099,120]
[358292645,1744899068595,-5035.5309073,0.00712164,120]
[358292646,1744899068605,-150.0,0.00712453,120]
[358292647,1744899068615,-15007.93635971,0.00712652,120]
[358292648,1744899068625,-266.67322323,0.00712896,120]
[358292649,1744899068635,-150.0,0.00713051,120]
[358292650,1744899068645,-150.0,0.00713051,120]
[358292651,1744899068655,-4423.25,0.007134,2]
[358292652,1744899068665,-8446.08,0.007134,2]
[358292653,1744899068675,-1689.22,0.007134,2]
[358292654,1744899068685,-337.84,0.007134,2]
[358292655,1744899068695,-150.0,0.00713428,120]
[358292656,1744899068705,-266.67322323,0.00713694,120]
[358292657,1744899068715,-150.0,0.00714324,120]
[358292658,1744899068724,-150.0,0.00714403,120]
[358292659,1744899068735,-266.67322323,0.00714491,120]
[358292660,1744899068745,-800.0,0.00714652,120]
[358292661,1744899068754,-266.67322323,0.00715289,120]
[358292662,1744899068763,-150.0,0.00715377,120]
[358292663,1744899068773,-150.0,0.00715597,120]
[358292664,1744899068782,-150.0,0.00715597,120]
[358292665,1744899068791,-266.67322323,0.00716086,120]
[358292666,1744899068801,-150.0,0.00716352,120]
[358292667,1744899068810,-150.0,0.00716871,120]
[358292668,1744899068819,-266.67322323,0.00716883,120]
[358292669,1744899068829,-150.0,0.00717326,120]
[358292670,1744899068839,-266.67322323,0.00717681,120]
[358292671,1744899068850,-150.0,0.00718144,120]
[358292672,1744899068860,-150.0,0.00718144,120]
[358292673,1744899068871,-150.0,0.00718301,120]
[358292674,1744899068882,-266.67322323,0.00718478,120]
[358292675,1744899068892,-266.67322323,0.00719276,120]
[358292676,1744899068902,-150.0,0.00719276,120]